{"text_format":"1","workbook":"xlsx","n_sheets":3,"sheets":["Panel","Lista de equipamiento","Datos dinámicos"],"not_rendered":{"charts":0,"images":0,"macros":1,"external_links":0,"defined_names":13,"comments":0,"pivot_tables":1},"unopened":[],"bounds":{"document_bytes":16777216,"sheet_cells":100000,"rows_first":2000,"rows_last":500,"rows_between":2000,"halvings":0,"cell_chars":16384,"cell_head_chars":4096},"cells_cut":0,"cells_raw":0,"read":"whole","date_system":"1900"}

{"sheet":"Panel","index":0,"n_rows":20,"n_cols":6,"rows_kept":20,"cut":false,"hidden":false,"merged":[]}
[null,"Panel"]
[]
[]
[null,null,null,null,null,"Recuento total"]
[null,null,null,null,null,{"$f":"GETPIVOTDATA(\"Recuento\",'Datos dinámicos'!$B$11)","v":3}]
[]
[null,null,null,null,null,"Coste mensual total"]
[null,null,null,null,null,{"$f":"GETPIVOTDATA(\"Coste mensual total \",'Datos dinámicos'!$B$11)","v":1765.5943035068672}]
[]
[null,null,null,null,null,"Costes operativos"]
[null,null,null,null,null,{"$f":"GETPIVOTDATA(\"Gastos de explotación mensuales \",'Datos dinámicos'!$B$11)","v":605}]
[]
[null,null,null,null,null,"Depreciación mensual"]
[null,null,null,null,null,{"$f":"GETPIVOTDATA(\"Depreciación mensual (lineal) \",'Datos dinámicos'!$B$11)","v":659.72222222222217}]
[]
[null,null,null,null,null,"Importe del pago"]
[null,null,null,null,null,{"$f":"GETPIVOTDATA(\"Pago mensual \",'Datos dinámicos'!$B$11)","v":1160.5943035068672}]
[]
[null,null,null,null,null,"Valor actual"]
[null,null,null,null,null,{"$f":"GETPIVOTDATA(\"Valor actual \",'Datos dinámicos'!$B$11)","v":37380.821917808222}]

{"sheet":"Lista de equipamiento","index":1,"n_rows":9,"n_cols":20,"rows_kept":9,"cut":false,"hidden":false,"merged":[]}
[null,"Lista de equipamiento"]
[]
[null,null,null,"Resaltar cuando los pagos mensuales restantes son inferiores a: ",20]
[]
[null,"Número del activo o número de serie","Descripción del artículo (fabricante y modelo)","Ubicación","Condición","Proveedor","Años de servicio restantes ","Valor inicial","Anticipo","Fecha de compra o alquiler","Plazo del préstamo (años)","Tasa de interés","Gastos de explotación mensuales","Valor esperado al final del contrato","Pagos mensuales restantes","Pago mensual","Coste mensual total","Depreciación anual (lineal)","Depreciación mensual (lineal)","Valor actual"]
[null,123,"Modelo de fabricación 1","Sede","Bien","Local",5,30000,5000,"2011-01-15",4,0.1,200,20000,{"$f":"IFERROR(SUMPRODUCT(--(DAY(ROW(OFFSET($A$1,,,DATE(YEAR(Equipamiento[[#This Row],[Fecha de compra o alquiler]])+Equipamiento[[#This Row],[Plazo del préstamo (años)]],MONTH(Equipamiento[[#This Row],[Fecha de compra o alquiler]])-1,DAY(Equipamiento[[#This Row],[Fecha de compra o alquiler]]))-TODAY()))+DATE(YEAR(Equipamiento[[#This Row],[Fecha de compra o alquiler]])+Equipamiento[[#This Row],[Plazo del préstamo (años)]],MONTH(Equipamiento[[#This Row],[Fecha de compra o alquiler]]),DAY(Equipamiento[[#This Row],[Fecha de compra o alquiler]]))-1)=DAY(Equipamiento[[#This Row],[Fecha de compra o alquiler]]))),0)","v":25},{"$f":"IFERROR(-(Equipamiento[Valor inicial]>0)*(Equipamiento[Valor inicial]<>Equipamiento[Anticipo])*PMT(Equipamiento[Tasa de interés]/MesesEnAño,Equipamiento[Plazo del préstamo (años)]*MesesEnAño,Equipamiento[Valor inicial]-Equipamiento[Anticipo]),0)","v":634.06458586867973},{"$f":"Equipamiento[[#This Row],[Pago mensual]]+Equipamiento[Gastos de explotación mensuales]","v":834.06458586867973},{"$f":"IFERROR((Equipamiento[Valor inicial]>0)*SLN(Equipamiento[Valor inicial],Equipamiento[Valor esperado al final del contrato],Equipamiento[Plazo del préstamo (años)]),0)","v":2500},{"$f":"IFERROR(Equipamiento[Depreciación anual (lineal)]/MesesEnAño,0)","v":208.33333333333334},{"$f":"IFERROR(Equipamiento[Valor inicial]-(Equipamiento[Depreciación anual (lineal)]*((TODAY()-Equipamiento[Fecha de compra o alquiler])/DíasEnAño)),0)","v":25315.068493150684}]
[null,234,"Modelo de fabricación 2","Sede","Bien","Local",4,12500,1500,"2011-03-10",3,7.7499999999999999E-2,120,3000,{"$f":"IFERROR(SUMPRODUCT(--(DAY(ROW(OFFSET($A$1,,,DATE(YEAR(Equipamiento[[#This Row],[Fecha de compra o alquiler]])+Equipamiento[[#This Row],[Plazo del préstamo (años)]],MONTH(Equipamiento[[#This Row],[Fecha de compra o alquiler]])-1,DAY(Equipamiento[[#This Row],[Fecha de compra o alquiler]]))-TODAY()))+DATE(YEAR(Equipamiento[[#This Row],[Fecha de compra o alquiler]])+Equipamiento[[#This Row],[Plazo del préstamo (años)]],MONTH(Equipamiento[[#This Row],[Fecha de compra o alquiler]]),DAY(Equipamiento[[#This Row],[Fecha de compra o alquiler]]))-1)=DAY(Equipamiento[[#This Row],[Fecha de compra o alquiler]]))),0)","v":15},{"$f":"IFERROR(-(Equipamiento[Valor inicial]>0)*(Equipamiento[Valor inicial]<>Equipamiento[Anticipo])*PMT(Equipamiento[Tasa de interés]/MesesEnAño,Equipamiento[Plazo del préstamo (años)]*MesesEnAño,Equipamiento[Valor inicial]-Equipamiento[Anticipo]),0)","v":343.43280007691891},{"$f":"Equipamiento[[#This Row],[Pago mensual]]+Equipamiento[Gastos de explotación mensuales]","v":463.43280007691891},{"$f":"IFERROR((Equipamiento[Valor inicial]>0)*SLN(Equipamiento[Valor inicial],Equipamiento[Valor esperado al final del contrato],Equipamiento[Plazo del préstamo (años)]),0)","v":3166.6666666666665},{"$f":"IFERROR(Equipamiento[Depreciación anual (lineal)]/MesesEnAño,0)","v":263.88888888888886},{"$f":"IFERROR(Equipamiento[Valor inicial]-(Equipamiento[Depreciación anual (lineal)]*((TODAY()-Equipamiento[Fecha de compra o alquiler])/DíasEnAño)),0)","v":7034.2465753424658}]
[null,345,"Modelo de fabricación 2","Filial 1","Regular","Otros",1,10000,2500,"2010-09-15",4,0.08,285,1000,{"$f":"IFERROR(SUMPRODUCT(--(DAY(ROW(OFFSET($A$1,,,DATE(YEAR(Equipamiento[[#This Row],[Fecha de compra o alquiler]])+Equipamiento[[#This Row],[Plazo del préstamo (años)]],MONTH(Equipamiento[[#This Row],[Fecha de compra o alquiler]])-1,DAY(Equipamiento[[#This Row],[Fecha de compra o alquiler]]))-TODAY()))+DATE(YEAR(Equipamiento[[#This Row],[Fecha de compra o alquiler]])+Equipamiento[[#This Row],[Plazo del préstamo (años)]],MONTH(Equipamiento[[#This Row],[Fecha de compra o alquiler]]),DAY(Equipamiento[[#This Row],[Fecha de compra o alquiler]]))-1)=DAY(Equipamiento[[#This Row],[Fecha de compra o alquiler]]))),0)","v":21},{"$f":"IFERROR(-(Equipamiento[Valor inicial]>0)*(Equipamiento[Valor inicial]<>Equipamiento[Anticipo])*PMT(Equipamiento[Tasa de interés]/MesesEnAño,Equipamiento[Plazo del préstamo (años)]*MesesEnAño,Equipamiento[Valor inicial]-Equipamiento[Anticipo]),0)","v":183.09691756126861},{"$f":"Equipamiento[[#This Row],[Pago mensual]]+Equipamiento[Gastos de explotación mensuales]","v":468.09691756126858},{"$f":"IFERROR((Equipamiento[Valor inicial]>0)*SLN(Equipamiento[Valor inicial],Equipamiento[Valor esperado al final del contrato],Equipamiento[Plazo del préstamo (años)]),0)","v":2250},{"$f":"IFERROR(Equipamiento[Depreciación anual (lineal)]/MesesEnAño,0)","v":187.5},{"$f":"IFERROR(Equipamiento[Valor inicial]-(Equipamiento[Depreciación anual (lineal)]*((TODAY()-Equipamiento[Fecha de compra o alquiler])/DíasEnAño)),0)","v":5031.5068493150684}]
[null,"Total",null,null,null,null,{"$f":"SUBTOTAL(101,Equipamiento[[Años de servicio restantes ]])","v":3.3333333333333335},{"$f":"SUBTOTAL(109,Equipamiento[Valor inicial])","v":52500},{"$f":"SUBTOTAL(109,Equipamiento[Anticipo])","v":9000},null,{"$f":"SUBTOTAL(101,Equipamiento[Plazo del préstamo (años)])","v":3.6666666666666665},{"$f":"SUBTOTAL(101,Equipamiento[Tasa de interés])","v":8.5833333333333331E-2},{"$f":"SUBTOTAL(109,Equipamiento[Gastos de explotación mensuales])","v":605},{"$f":"SUBTOTAL(109,Equipamiento[Valor esperado al final del contrato])","v":24000},{"$f":"SUBTOTAL(101,Equipamiento[Pagos mensuales restantes])","v":20.333333333333332},{"$f":"SUBTOTAL(109,Equipamiento[Pago mensual])","v":1160.5943035068672},{"$f":"SUBTOTAL(109,Equipamiento[Coste mensual total])","v":1765.5943035068672},{"$f":"SUBTOTAL(101,Equipamiento[Depreciación anual (lineal)])","v":2638.8888888888887},{"$f":"SUBTOTAL(101,Equipamiento[Depreciación mensual (lineal)])","v":219.90740740740739},{"$f":"SUBTOTAL(109,Equipamiento[Valor actual])","v":37380.821917808222}]

{"sheet":"Datos dinámicos","index":2,"n_rows":16,"n_cols":8,"rows_kept":16,"cut":false,"hidden":true,"merged":[]}
[]
[null,"Datos dinámicos"]
[null,"Esta hoja se mantiene oculta. Alterar la estructura de las Tablas dinámicas de esta hoja puede resultar en errores en los Segmentadores de paneles."]
[]
[null,"Descripción del artículo (fabricante y modelo)","(Todas)"]
[null,"Ubicación","(Todas)"]
[null,"Condición","(Todas)"]
[null,"Proveedor","(Todas)"]
[null,"Años de servicio restantes ","(Todas)"]
[null,"Plazo del préstamo (años)","(Todas)"]
[]
[null,"Etiquetas de fila","Recuento","Gastos de explotación mensuales ","Pago mensual ","Coste mensual total ","Depreciación mensual (lineal) ","Valor actual "]
[null,123,1,200,634.06458586867973,834.06458586867973,208.33333333333334,25315.068493150684]
[null,234,1,120,343.43280007691891,463.43280007691891,263.88888888888886,7034.2465753424658]
[null,345,1,285,183.09691756126861,468.09691756126858,187.5,5031.5068493150684]
[null,"Total general",3,605,1160.5943035068672,1765.5943035068672,659.72222222222217,37380.821917808222]